bitfinex/quotes_ETHUSD_20230902
["timestamp","ask_amount","ask_price","bid_price","bid_amount"]
[1693691211045,3.61903944,1636.9,1636.8,0.1]
[1693691214072,3.61903944,1636.9,1636.8,0.40174285]
[1693691217484,3.08185404,1636.9,1636.8,0.40174285]
[1693691221407,3.08185404,1636.9,1636.8,0.1]
[1693691221960,5.34755404,1636.9,1636.8,0.1]
[1693691224006,5.34755404,1636.9,1636.8,0.40214568]
[1693691226594,8.34755404,1636.9,1636.8,0.40214568]
[1693691226801,9.18230944,1636.9,1636.8,0.40214568]
[1693691227097,9.18230944,1636.9,1636.8,0.1]
[1693691230119,6.18230944,1636.9,1636.8,0.1]
[1693691230416,9.18230944,1636.9,1636.8,0.1]
[1693691231064,3.08185404,1636.9,1636.8,0.1]
[1693691231520,3.08185404,1636.9,1636.8,0.40214568]
[1693691232268,3.08185404,1636.9,1636.8,0.1]
[1693691232998,6.0,1637.1,1636.8,0.1]
[1693691233165,6.08185404,1637.0,1636.8,0.1]
[1693691233361,6.08185404,1637.0,1636.8,0.39277068]
[1693691235633,3.08185404,1637.0,1636.8,0.39277068]
[1693691250297,3.08185404,1637.0,1636.8,0.75204775]
[1693691258220,5.34095404,1637.0,1636.8,0.75204775]
[1693691258524,5.34095404,1637.0,1636.8,0.39277068]
[1693691263366,0.64031918,1637.1,1636.8,0.39277068]
[1693691263565,2.75681918,1637.2,1636.8,1.03007819]
[1693691263732,5.83867322,1637.2,1636.8,1.03007819]
[1693691265058,5.19835404,1637.2,1636.8,1.03007819]
[1693691267067,0.64031918,1637.3,1636.8,4.11193223]
[1693691267232,0.64031918,1637.5,1637.1,1.552]
[1693691267433,0.64031918,1637.6,1637.1,0.63730751]
[1693691267730,1.60079795,1637.6,1637.2,0.29244966]
[1693691267929,1.60079795,1637.6,1637.0,2.51960751]
[1693691267930,0.64031918,1637.6,1637.0,2.51960751]
[1693691268926,1.60079795,1637.7,1637.0,2.51960751]
[1693691269164,4.25322802,1637.7,1637.2,1.552]
[1693691269330,3.29274925,1637.7,1637.2,1.552]
[1693691269660,0.64031918,1637.7,1637.2,1.552]
[1693691269863,33.36141918,1637.8,1637.4,1.552]
[1693691270066,36.44327322,1637.8,1637.4,1.552]
[1693691270362,0.64031918,1637.8,1637.4,1.552]
[1693691270762,2.92531918,1637.9,1637.4,1.552]
[1693691270962,6.00717322,1637.9,1637.4,1.552]
[1693691273135,6.00717322,1637.9,1637.5,0.29210298]
[1693691273857,5.36685404,1637.9,1637.5,0.29210298]
[1693691274246,5.36685404,1637.9,1637.5,3.39210298]
[1693691274571,5.36685404,1637.9,1637.5,3.88651328]
[1693691293611,5.36685404,1637.9,1637.5,3.39210298]
[1693691305715,2.285,1637.9,1637.5,3.39210298]
[1693691311822,2.92349836,1637.9,1637.5,3.39210298]
[1693691313837,3.88124591,1637.9,1637.5,3.39210298]
[1693691314939,1.69928862,1637.8,1637.5,3.39210298]
[1693691315139,1.69928862,1637.8,1637.6,0.3392103]
[1693691315345,3.88124591,1637.9,1637.6,0.3392103]
[1693691315639,3.88124591,1637.9,1637.7,0.29194258]
[1693691315941,1.69928694,1637.8,1637.6,0.3392103]
[1693691318242,1.69928694,1637.8,1637.7,0.29194258]
[1693691318741,1.69928694,1637.8,1637.6,0.3392103]
[1693691322952,3.88124591,1637.9,1637.6,0.3392103]
[1693691333121,3.88124591,1637.9,1637.7,0.29194258]
[1693691333466,3.88124591,1637.9,1637.6,0.3392103]
[1693691343148,1.69925904,1637.8,1637.6,0.3392103]
[1693691346337,3.89515904,1637.8,1637.6,0.3392103]
[1693691346537,2.83439836,1637.8,1637.6,0.3392103]
[1693691348175,2.83439836,1637.8,1637.7,0.28993321]
[1693691348571,5.48632888,1637.8,1637.6,0.3392103]
[1693691348780,2.83439836,1637.8,1637.6,0.3392103]
[1693691363205,2.83439836,1637.8,1637.7,0.28993321]
[1693691363796,5.48631534,1637.8,1637.6,0.3392103]
[1693691364004,2.83439836,1637.8,1637.6,0.3392103]
[1693691369749,2.83722394,1637.8,1637.6,0.3392103]
[1693691376441,2.83722352,1637.8,1637.6,0.3392103]
[1693691378339,2.83722352,1637.8,1637.7,0.28808957]
[1693691378724,2.83722352,1637.8,1637.6,0.3392103]
[1693691378725,5.48913585,1637.8,1637.6,0.3392103]
[1693691378914,2.83722352,1637.8,1637.6,0.3392103]
[1693691384103,2.1959,1637.8,1637.6,0.3392103]
[1693691389291,2.84432352,1637.9,1637.6,0.3392103]
[1693691389593,2.203,1637.9,1637.6,0.97808593]
[1693691392392,2.203,1637.9,1637.6,3.97808593]
[1693691392691,2.203,1637.9,1637.7,0.39780859]
[1693691393086,2.203,1637.9,1637.8,0.28800939]
[1693691421432,1.9874,1638.1,1637.8,0.28800939]
[1693691421433,2.173,1638.0,1637.8,0.28800939]
[1693691432341,2.173,1638.0,1637.8,0.36611661]
[1693691434299,2.173,1638.0,1637.8,3.36611661]
[1693691434507,2.173,1638.0,1637.9,0.33661166]
[1693691437020,2.173,1638.0,1637.7,5.48625468]
[1693691438035,2.173,1638.0,1637.7,0.49439656]
[1693691438243,2.173,1638.0,1637.8,0.3662016]
[1693691438596,2.173,1638.0,1637.6,0.63761981]
[1693691442149,2.8132575,1638.0,1637.6,0.63761981]
[1693691442299,2.2184,1637.9,1637.6,0.63761981]
[1693691443553,2.2184,1637.9,1637.6,1.15482724]
[1693691448816,2.2184,1637.9,1637.6,0.63761981]
[1693691449016,2.2184,1637.9,1637.5,4.21564457]
[1693691449547,4.1624,1637.9,1637.5,4.21564457]
[1693691450005,2.1798,1637.8,1637.5,4.21564457]
[1693691450835,2.1798,1637.8,1637.5,3.57802476]
[1693691453407,2.1798,1637.8,1637.6,0.36637161]
[1693691465300,2.59218,1637.8,1637.6,0.36637161]
[1693691465590,3.23256775,1637.8,1637.6,0.36637161]
[1693691471626,2.59218,1637.8,1637.6,0.36637161]
[1693691472631,3.23256775,1637.8,1637.6,0.36637161]
[1693691473488,5.67403404,1637.8,1637.6,0.36637161]
[1693691473831,0.5674034,1637.7,1637.6,0.36637161]
[1693691474328,2.7282034,1637.7,1637.6,0.36637161]
[1693691481427,5.81005744,1637.7,1637.6,0.36637161]
[1693691481741,7.36205744,1637.7,1637.6,0.36637161]
[1693691482785,13.97513354,1637.7,1637.6,0.36637161]
[1693691482979,16.97513354,1637.7,1637.6,0.36637161]
[1693691483180,16.97513354,1637.7,1637.5,3.1]
[1693691483398,8.03210711,1637.6,1637.5,3.1]
[1693691485463,6.33136739,1637.6,1637.5,3.1]
[1693691485617,8.03214754,1637.6,1637.5,3.1]
[1693691486449,6.33136739,1637.6,1637.5,3.1]
[1693691486821,8.03215386,1637.6,1637.5,3.1]
[1693691487567,11.03215386,1637.6,1637.5,3.1]
[1693691487848,8.03215386,1637.6,1637.5,3.1]
[1693691488056,11.03215386,1637.6,1637.5,3.1]
[1693691488239,13.24055386,1637.6,1637.5,3.1]
[1693691488424,11.53976739,1637.6,1637.5,3.1]
[1693691488621,12.60081084,1637.6,1637.5,3.1]
[1693691488838,13.24055277,1637.6,1637.5,3.1]
[1693691489166,12.60081084,1637.6,1637.5,3.1]
[1693691489363,11.53976739,1637.6,1637.5,3.1]
[1693691490929,13.24055668,1637.6,1637.5,3.1]
[1693691491335,11.53976739,1637.6,1637.5,3.1]
[1693691491873,13.24056262,1637.6,1637.5,3.1]
[1693691494255,10.24056262,1637.6,1637.5,3.1]
[1693691494451,13.24056262,1637.6,1637.5,3.1]
[1693691494667,14.83217288,1637.6,1637.5,3.1]
[1693691499076,11.83217288,1637.6,1637.5,3.1]
[1693691499277,14.83217288,1637.6,1637.5,3.1]
[1693691502279,18.7927545,1637.6,1637.5,3.1]
[1693691502927,18.15301257,1637.6,1637.5,3.1]
[1693691503480,18.79251739,1637.6,1637.5,3.1]
[1693691503816,18.15301257,1637.6,1637.5,3.1]
[1693691506325,20.91568718,1637.6,1637.5,3.1]
[1693691506566,21.39568718,1637.6,1637.5,3.1]
[1693691506701,19.79471781,1637.6,1637.5,3.1]
[1693691507348,20.35101611,1637.6,1637.5,3.1]
[1693691507912,22.27217936,1637.6,1637.5,3.1]
[1693691508134,20.35101611,1637.6,1637.5,3.1]
[1693691510436,29.50527217,1637.6,1637.5,3.1]
[1693691510621,26.85204936,1637.6,1637.5,3.1]
[1693691511008,22.27217936,1637.6,1637.5,3.1]
[1693691511403,20.35101611,1637.6,1637.5,3.1]
[1693691512030,22.27217936,1637.6,1637.5,3.1]
[1693691512429,20.35101611,1637.6,1637.5,3.1]
[1693691513852,24.93088611,1637.6,1637.5,3.1]
[1693691514875,26.85204936,1637.6,1637.5,3.1]
[1693691517164,31.43191936,1637.6,1637.5,3.1]
[1693691517472,24.93088611,1637.6,1637.5,3.1]
[1693691517637,26.85204936,1637.6,1637.5,3.1]
[1693691518782,24.93088611,1637.6,1637.5,3.1]
[1693691520247,29.50535655,1637.6,1637.5,3.1]
[1693691521066,34.08522655,1637.6,1637.5,3.1]
[1693691521269,35.50535655,1637.6,1637.5,3.1]
[1693691521570,40.08522655,1637.6,1637.5,3.1]
[1693691521778,35.50535655,1637.6,1637.5,3.1]
[1693691522274,3.0,1637.1,1636.8,0.1]
[1693691522589,5.69531636,1637.0,1636.8,0.1]
[1693691522744,5.27316096,1637.0,1636.8,0.1]
[1693691524738,4.63385404,1637.0,1636.8,0.1]
[1693691525579,5.27316096,1637.0,1636.8,0.1]
[1693691525768,6.14637309,1637.0,1636.8,0.1]
[1693691525971,5.50706617,1637.0,1636.8,0.1]
[1693691527979,6.14637309,1637.0,1636.8,0.1]
[1693691528774,5.50706617,1637.0,1636.8,0.1]
[1693691528977,6.14637309,1637.0,1636.8,0.1]
[1693691529187,0.61463731,1636.9,1636.8,0.1]
[1693691529375,3.69649135,1636.9,1636.8,0.1]
[1693691547475,3.08185404,1636.9,1636.8,0.1]
[1693691568332,5.90080692,1637.0,1636.8,0.1]
[1693691568494,6.18185404,1637.0,1636.8,0.1]
[1693691569222,6.82116096,1637.0,1636.8,0.1]
[1693691569797,6.18185404,1637.0,1636.8,0.1]
[1693691571253,3.1,1637.0,1636.5,1.78382289]
[1693691571437,3.1,1637.0,1636.5,0.63772289]
[1693691571636,3.1,1637.0,1636.6,1.91898118]
[1693691571838,3.1,1637.0,1636.7,1.552]
[1693691573027,3.1,1637.0,1636.8,0.36678664]
[1693691577975,3.1,1637.0,1636.6,1.552]
[1693691578478,2.1851,1637.1,1636.6,1.552]
[1693691578772,5.26695404,1637.1,1636.6,1.552]
[1693691580966,2.2318,1637.0,1636.6,1.552]
[1693691588161,2.2318,1637.0,1636.7,0.3668839]
[1693691588354,2.2318,1637.0,1636.7,1.9188839]
[1693691588554,5.3318,1637.0,1636.7,1.9188839]
[1693691596311,5.3318,1637.0,1636.7,2.27020301]
[1693691604235,2.1725,1636.9,1636.7,2.27020301]
[1693691605125,2.1725,1636.9,1636.7,0.71820301]
[1693691605430,2.1725,1636.9,1636.7,0.3668839]
[1693691611220,3.73930692,1637.0,1636.7,1.9188839]
[1693691611431,5.2911,1637.0,1636.7,1.9188839]
[1693691612398,5.2911,1637.0,1636.7,2.55660679]
[1693691613910,5.2911,1637.0,1636.7,2.558647]
[1693691614218,2.1264,1636.9,1636.7,2.558647]
[1693691616539,2.1264,1636.9,1636.7,2.91047617]
[1693691618009,2.1264,1636.9,1636.7,2.27071307]
[1693691618448,2.1264,1636.9,1636.7,2.91047617]
[1693691619450,2.1264,1636.9,1636.7,2.27071307]
[1693691635940,2.1264,1636.9,1636.7,0.71871307]
[1693691639244,2.1264,1636.9,1636.7,0.3668839]
[1693691639975,3.74143649,1637.0,1636.7,1.9188839]
[1693691640169,5.88843649,1637.0,1636.7,1.9188839]
[1693691644460,3.29490646,1636.9,1636.7,0.3668839]
[1693691644669,0.64143649,1636.8,1636.7,0.3668839]
[1693691644860,2.15758465,1636.8,1636.4,1.22032448]
[1693691645058,3.80932448,1636.7,1636.4,1.22032448]
[1693691645371,3.80932448,1636.7,1636.5,0.36707848]
[1693691645372,2.1065,1636.7,1636.5,0.36707848]
[1693691687515,2.74793649,1636.7,1636.5,0.36707848]
[1693691689670,0.64143649,1636.7,1636.5,0.36707848]
[1693691689876,1.70295901,1636.7,1636.5,0.36707848]
[1693691690170,3.87545901,1636.7,1636.5,0.36707848]
[1693691690375,1.06152521,1636.6,1636.5,0.36707848]
[1693691691275,3.77609123,1636.7,1636.5,0.36707848]
[1693691691476,4.56730699,1636.7,1636.5,0.36707848]
[1693691700487,3.29530762,1636.6,1636.5,0.36707848]
[1693691706928,5.56870762,1636.6,1636.5,0.36707848]
[1693691708278,8.65056166,1636.6,1636.5,0.36707848]
[1693691708474,6.69787991,1636.6,1636.5,0.36707848]
[1693691708627,9.89407678,1636.6,1636.5,0.36707848]
[1693691709056,9.89407678,1636.6,1636.4,0.1]
[1693691709251,3.29542204,1636.5,1636.4,0.1]
[1693691709661,5.61442204,1636.5,1636.4,0.1]
[1693691709873,4.02196043,1636.5,1636.4,0.1]
[1693691711151,5.61443402,1636.5,1636.4,0.1]
[1693691711830,4.02196043,1636.5,1636.4,0.1]
[1693691714233,5.15941704,1636.5,1636.4,0.1]
[1693691715957,3.45645661,1636.5,1636.4,0.1]
[1693691716354,5.15953216,1636.5,1636.4,0.1]
[1693691716676,4.51809913,1636.5,1636.4,0.1]
[1693691717272,3.45645661,1636.5,1636.4,0.1]
[1693691723192,3.45645661,1636.5,1636.4,0.45689878]
[1693691723368,6.55645661,1636.5,1636.4,0.1]
[1693691730508,8.25905933,1636.5,1636.4,0.1]
[1693691730806,6.55645661,1636.5,1636.4,0.1]
[1693691730980,7.6181022,1636.5,1636.4,0.1]
[1693691731498,6.55645661,1636.5,1636.4,0.1]
[1693691731702,8.25905991,1636.5,1636.4,0.1]
[1693691731886,7.61810126,1636.5,1636.4,0.1]
[1693691732307,6.55645661,1636.5,1636.4,0.1]
[1693691732978,8.25905643,1636.5,1636.4,0.1]
[1693691738112,8.25905643,1636.5,1636.4,0.52144464]
[1693691739212,7.12159982,1636.5,1636.4,0.52144464]
[1693691743413,8.7140497,1636.5,1636.4,0.52144464]
[1693691750924,9.67548768,1636.5,1636.1,1.90522639]
[1693691751132,7.02139663,1636.5,1636.4,0.40639304]
[1693691751425,10.18343626,1636.5,1636.1,1.90522639]
[1693691751592,7.02139663,1636.5,1636.1,1.90522639]
[1693691752724,1.06164669,1636.4,1636.1,1.90522639]
[1693691753120,7.02139663,1636.5,1636.2,0.40659559]
[1693691753827,1.70260174,1636.4,1636.2,0.40659559]
[1693691758831,7.02139663,1636.5,1636.2,0.40659559]
[1693691759336,1.06163186,1636.4,1636.2,0.40659559]
[1693691759731,1.70259051,1636.4,1636.2,0.40659559]
[1693691759934,7.02139663,1636.5,1636.2,0.40659559]
[1693691760321,7.02139663,1636.5,1636.2,2.33567683]
[1693691760522,4.70239663,1636.5,1636.2,2.33567683]
[1693691760709,3.74095865,1636.5,1636.2,2.97509145]
[1693691763450,3.74095865,1636.5,1636.3,1.552]
[1693691765545,3.1,1636.5,1636.4,1.552]
[1693691768313,3.1,1636.5,1636.4,1.93132855]
[1693691783093,3.1,1636.5,1636.4,0.37932855]
[1693691787885,3.1,1636.5,1636.4,1.93132855]
[1693691797669,3.1,1636.5,1636.4,2.47380307]
[1693691856385,3.1,1636.5,1636.4,0.92180307]
[1693691856662,3.1,1636.5,1636.4,0.37932855]
[1693691856855,2.2295,1636.5,1636.4,0.37932855]
[1693691859842,5.3295,1636.5,1636.4,0.37932855]
[1693691931620,5.3295,1636.5,1636.4,1.01882546]
[1693691932821,5.3295,1636.5,1636.4,0.37932855]
[1693691935022,5.3295,1636.5,1636.4,1.01882546]
[1693691935240,5.3295,1636.5,1636.4,1.7211742]
[1693691935385,5.3295,1636.5,1636.4,1.08167729]
[1693691940407,5.3295,1636.5,1636.4,1.7211742]
[1693691948282,5.3295,1636.5,1636.4,1.69691732]
[1693691957802,5.3295,1636.5,1636.4,7.85858062]
[1693691966824,5.2795,1636.5,1636.4,7.85858062]
[1693691995793,5.2795,1636.5,1636.4,7.85949739]
[1693692006395,5.2795,1636.5,1636.4,7.15714865]
[1693692006567,5.2795,1636.5,1636.4,6.51673497]
[1693692008660,5.25132,1636.5,1636.4,6.51673497]
[1693692008995,5.2457,1636.5,1636.4,6.51673497]
[1693692016509,5.2457,1636.5,1636.4,6.51708756]
[1693692022747,5.2457,1636.5,1636.4,0.35507167]
[1693692067441,5.2457,1636.5,1636.4,0.30507167]
[1693692086100,2.1457,1636.5,1636.4,0.30507167]
[1693692098215,5.2457,1636.5,1636.4,0.30507167]
[1693692104375,8.01653921,1636.5,1636.4,0.30507167]
[1693692104575,11.83141027,1636.5,1636.4,0.30507167]
[1693692104844,9.38675342,1636.5,1636.0,2.19280689]
[1693692105047,6.38437483,1636.4,1636.0,5.27466093]
[1693692105353,5.3226953,1636.4,1636.0,5.27466093]
[1693692105644,6.44199842,1636.4,1636.0,4.63385404]
[1693692105992,6.44199842,1636.4,1636.1,0.00955326]
[1693692106907,6.44199842,1636.4,1636.1,1.56155326]
[1693692108507,5.80050312,1636.4,1636.1,1.56155326]
[1693692113245,5.80050312,1636.4,1636.1,0.00955326]
[1693692116279,5.80050312,1636.4,1636.2,0.37950119]
[1693692116486,0.58005031,1636.3,1636.2,0.37950119]
[1693692117483,0.58005031,1636.3,1636.0,1.552]
[1693692117983,0.58005031,1636.3,1636.1,0.00955326]
[1693692119300,2.307,1636.4,1636.2,3.08185404]
[1693692119457,2.307,1636.4,1636.3,1.552]
[1693692119840,2.307,1636.4,1636.3,1.65287828]
[1693692122387,3.1,1636.5,1636.3,1.65287828]
[1693692125173,3.1,1636.5,1636.4,1.552]
[1693692128236,3.1,1636.5,1636.4,11.64873232]
[1693692128412,3.1,1636.5,1636.4,13.07671023]
[1693692128617,3.1,1636.5,1636.4,16.07671023]
[1693692128770,3.1,1636.5,1636.4,9.74358851]
[1693692129667,3.07435,1636.5,1636.4,9.74358851]
[1693692130589,3.06923,1636.5,1636.4,9.74358851]
[1693692131389,3.06923,1636.5,1636.4,10.1215867]
[1693692135011,3.06923,1636.5,1636.4,16.5555867]
[1693692135411,3.06923,1636.5,1636.4,17.1659867]
[1693692143931,4.4694,1637.0,1636.5,1.552]
[1693692144175,4.4694,1637.0,1636.8,1.552]
[1693692146577,4.4694,1637.0,1636.9,0.37709948]
[1693692147189,4.4694,1637.0,1636.8,1.552]
[1693692149658,2.1753,1637.0,1636.8,4.63385404]
[1693692149863,2.1753,1637.0,1636.9,1.552]
[1693692150044,0.64047476,1637.3,1636.9,5.09723944]
[1693692150267,2.2763,1637.1,1637.0,0.48]
[1693692150561,2.2763,1637.1,1637.0,3.48]
[1693692152451,5.2763,1637.1,1637.0,3.48]
[1693692153359,5.2763,1637.1,1637.0,5.032]
[1693692153551,5.2763,1637.1,1637.0,5.88972394]
[1693692157861,5.2763,1637.1,1637.0,0.85772394]
[1693692158061,5.2763,1637.1,1636.8,1.552]
[1693692158375,5.2763,1637.1,1636.8,4.63385404]
[1693692161469,5.2763,1637.1,1636.9,0.37652928]
[1693692161870,5.2763,1637.1,1636.8,4.63385404]
[1693692164099,5.2763,1637.1,1636.7,2.03203911]
[1693692164301,0.52763,1637.0,1636.5,1.552]
[1693692164510,4.60138205,1637.0,1636.5,4.63385404]
[1693692164724,2.1851,1636.9,1636.5,4.63385404]
[1693692164929,2.1851,1636.9,1636.5,5.09723944]
[1693692170306,2.1851,1636.9,1636.5,2.0153854]
[1693692171196,2.1851,1636.9,1636.5,1.552]
[1693692171394,2.82480745,1636.9,1636.5,1.552]
[1693692175748,2.82480745,1636.9,1636.5,2.03425528]
[1693692176455,2.82480745,1636.9,1636.6,0.33905335]
[1693692184862,2.82480745,1636.9,1636.6,1.89105335]
[1693692185064,3.01160745,1637.0,1636.7,1.552]
[1693692185428,5.20080745,1637.0,1636.7,1.552]
[1693692188266,5.20080745,1637.0,1636.6,4.97290739]
[1693692188437,5.20080745,1637.0,1636.7,0.49729074]
[1693692191362,5.20080745,1637.0,1636.8,0.33876091]
[1693692191973,5.20080745,1637.0,1636.6,4.63385404]
[1693692192140,5.20080745,1637.0,1636.7,1.552]
[1693692203654,6.16036862,1637.0,1636.7,1.552]
[1693692203854,6.16036862,1637.0,1636.7,2.0153854]
[1693692204593,1.70107662,1636.9,1636.7,2.0153854]
[1693692205056,6.16036862,1637.0,1636.7,2.0153854]
[1693692205357,1.06136769,1636.9,1636.7,2.0153854]
[1693692205558,1.70107514,1636.9,1636.7,2.0153854]
[1693692206373,1.70107514,1636.9,1636.8,0.33876091]
[1693692207383,3.29312827,1636.9,1636.8,0.33876091]
[1693692209665,5.39822827,1636.9,1636.8,0.33876091]
[1693692210821,5.39822827,1636.9,1636.6,4.63385404]
[1693692211121,2.74480745,1636.9,1636.6,5.21706633]
[1693692215521,2.2098,1636.8,1636.6,5.21706633]
[1693692221360,2.2098,1636.8,1636.7,0.33922177]
[1693692223456,2.2098,1636.8,1636.7,6.50034798]
[1693692228454,0.63970745,1636.9,1636.7,6.50034798]
[1693692228615,2.76040745,1636.9,1636.7,0.33922177]
[1693692229555,3.71996862,1636.9,1636.7,0.33922177]
[1693692231455,1.06136403,1636.8,1636.7,0.33922177]
[1693692231622,1.70107148,1636.8,1636.7,0.33922177]
[1693692231821,1.70107148,1636.8,1636.7,6.50042819]
[1693692232249,1.06136403,1636.8,1636.7,6.50042819]
[1693692232462,1.06136316,1636.8,1636.7,6.50042819]
[1693692233278,1.70107061,1636.8,1636.7,6.50042819]
[1693692233481,3.08026117,1636.9,1636.7,6.50042819]
[1693692233482,3.71996862,1636.9,1636.7,6.50042819]
[1693692233653,3.71996862,1636.9,1636.7,0.33922177]
[1693692234169,1.06136288,1636.8,1636.7,0.33922177]
[1693692234647,1.70107033,1636.8,1636.7,6.50042153]
[1693692236268,3.71996862,1636.9,1636.7,6.50042153]
[1693692236439,3.71996862,1636.9,1636.7,0.33922177]
[1693692237836,1.06136314,1636.8,1636.7,0.33922177]
[1693692238460,1.70107059,1636.8,1636.7,6.50042273]
[1693692238773,1.06136314,1636.8,1636.7,6.50042273]
[1693692238932,1.70107059,1636.8,1636.7,6.50042273]
[1693692240275,1.06136314,1636.8,1636.7,6.50042273]
[1693692240971,3.71996862,1636.9,1636.7,6.50042273]
[1693692241155,3.71996862,1636.9,1636.7,0.33922177]
[1693692241735,3.71996862,1636.9,1636.8,1.552]
[1693692241936,1.59926862,1637.0,1636.8,7.71303648]
[1693692242163,5.56291126,1637.0,1636.8,1.89076091]
[1693692242474,2.90970745,1637.0,1636.8,1.89076091]
[1693692245776,5.82610745,1637.1,1636.9,6.16063234]
[1693692245977,5.82610745,1637.1,1637.0,0.61606323]
[1693692246175,5.82610745,1637.1,1636.9,1.552]
[1693692246176,5.1864,1637.1,1636.9,1.552]
[1693692251559,5.1864,1637.1,1637.0,0.33893838]
[1693692281640,5.1864,1637.1,1636.8,4.63385404]
[1693692282119,5.1864,1637.1,1637.0,0.33857204]
[1693692282294,5.1864,1637.1,1636.8,4.63385404]
[1693692282494,5.1864,1637.1,1636.8,5.28300447]
[1693692283027,5.1864,1637.1,1636.9,6.16025786]
[1693692288870,5.1864,1637.1,1637.0,6.16006668]
[1693692289566,5.1864,1637.1,1636.9,6.16006668]
[1693692289725,5.1864,1637.1,1637.0,6.16006668]
[1693692290246,5.1864,1637.1,1636.9,6.16006668]
[1693692290433,5.1864,1637.1,1637.0,6.16006668]
[1693692291026,5.1864,1637.1,1636.8,5.92399169]
[1693692291027,5.1864,1637.1,1636.9,6.16006668]
[1693692291287,5.1864,1637.1,1637.0,6.16006668]
[1693692291698,5.1864,1637.1,1636.9,6.16006668]
[1693692296377,5.1864,1637.1,1637.0,0.33893838]
[1693692296577,5.1864,1637.1,1637.0,6.49900506]
[1693692300830,5.76903943,1637.1,1637.0,6.49900506]
[1693692300999,7.47023938,1637.1,1637.0,0.33893838]
[1693692301196,7.47023938,1637.1,1636.8,0.64098722]
[1693692301376,2.1096,1637.0,1636.9,6.16031199]
[1693692309763,2.1096,1637.0,1636.8,0.64098722]
[1693692310077,2.1096,1637.0,1636.9,6.16007551]
[1693692311481,2.1096,1637.0,1636.9,6.49910834]
[1693692314095,5.1274,1637.1,1636.9,8.05110834]
[1693692314394,5.1274,1637.1,1637.0,6.16007551]
[1693692324504,5.1274,1637.1,1637.0,6.1599858]
[1693692325048,3.0,1637.1,1637.0,6.1599858]
[1693692326098,3.0,1637.1,1637.0,8.51708766]
[1693692326600,3.0,1637.1,1637.0,9.49727162]
[1693692329631,3.0,1637.1,1637.0,8.85602604]
[1693692333117,3.0,1637.1,1637.0,8.85932424]
[1693692341643,2.1918,1637.3,1637.0,8.85932424]
[1693692341822,2.1918,1637.3,1637.0,2.69933844]
[1693692342022,2.1918,1637.3,1637.0,1.89423658]
[1693692344520,5.1918,1637.3,1637.0,1.89423658]
[1693692344721,5.1918,1637.3,1637.1,6.15935953]
[1693692344921,2.2035,1637.2,1637.1,6.52218398]
[1693692373693,2.2035,1637.2,1637.1,7.16272916]
[1693692379897,2.2035,1637.2,1637.1,6.52218398]
[1693692380200,2.2035,1637.2,1637.1,7.16272916]
[1693692411533,2.2035,1637.2,1637.1,7.16255064]
[1693692454316,2.2035,1637.2,1637.1,7.16254641]
[1693692475734,2.2035,1637.2,1637.1,7.16254859]
[1693692525100,2.2035,1637.2,1637.1,7.16213115]
[1693692525611,2.2035,1637.2,1637.1,7.1629348]
[1693692530434,2.2035,1637.2,1637.1,7.9754306]
[1693692533212,2.2035,1637.2,1637.1,1.81625164]
[1693692533412,2.2035,1637.2,1637.1,1.00375584]
[1693692533585,2.2035,1637.2,1637.1,7.16286776]
[1693692550159,2.2035,1637.2,1637.1,6.52151893]
[1693692577865,3.0,1637.3,1637.1,6.52151893]
[1693692578165,3.0,1637.3,1637.2,6.15911192]
[1693692578508,5.3048,1637.3,1637.2,6.15911192]
[1693692578662,5.3048,1637.3,1637.2,6.5180649]
[1693692579194,5.3048,1637.3,1637.2,6.52134527]
[1693692580722,5.3048,1637.3,1637.2,6.52165604]
[1693692580998,5.3048,1637.3,1637.2,0.36223335]
[1693692581495,5.3048,1637.3,1637.2,6.52167227]
[1693692591223,5.3048,1637.3,1637.2,6.52158525]
[1693692600232,6.36585488,1637.3,1637.2,6.52158525]
[1693692608051,7.00725168,1637.3,1637.2,6.52158525]
[1693692608857,6.36585488,1637.3,1637.2,6.52158525]
[1693692610155,5.3048,1637.3,1637.2,6.52158525]
[1693692626609,3.0,1637.3,1637.2,6.52158525]
[1693692631880,3.0,1637.3,1637.2,7.87878726]
[1693692632294,3.0,1637.3,1637.2,12.5126413]
[1693692632599,3.0,1637.3,1637.2,13.47427027]
[1693692632795,3.0,1637.3,1637.2,12.83311561]
[1693692632996,3.0,1637.3,1637.2,12.35169268]
[1693692633304,3.0,1637.3,1637.2,13.95395023]
[1693692633707,3.0,1637.3,1637.2,13.31304721]
[1693692634001,3.0,1637.3,1637.2,13.9537522]
[1693692634805,3.0,1637.3,1637.2,12.99239767]
[1693692635315,3.0,1637.3,1637.2,13.60279767]
[1693692643117,3.0,1637.3,1637.2,7.44344577]
[1693692643316,3.0,1637.3,1637.2,13.60182658]
[1693692644820,3.0,1637.3,1637.2,12.96112159]
[1693692645908,3.0,1637.3,1637.2,13.44924475]
[1693692649631,2.95077,1637.3,1637.2,13.44924475]
[1693692650631,2.94094,1637.3,1637.2,13.44924475]
[1693692653623,2.94094,1637.3,1637.2,18.05130427]
[1693692655234,1.70365631,1638.1,1637.3,5.41553043]
[1693692655437,2.3049,1637.8,1637.4,20.40396906]
[1693692655736,2.3049,1637.8,1637.5,7.40811502]
[1693692656035,2.3049,1637.8,1637.6,13.33063485]
[1693692656243,2.3049,1637.8,1637.6,7.1755001]
[1693692656426,2.3049,1637.8,1637.7,1.07612993]
[1693692656738,2.3049,1637.8,1637.7,5.70998397]
[1693692660099,2.3049,1637.8,1637.7,5.71322179]
[1693692661125,5.3049,1637.8,1637.7,5.71322179]
[1693692662747,2.3049,1637.8,1637.7,5.71322179]
[1693692669369,2.3049,1637.8,1637.7,6.20340061]
[1693692676732,2.3049,1637.8,1637.7,1.56954657]
[1693692677016,2.3049,1637.8,1637.7,0.85199656]
[1693692681646,5.38675404,1637.8,1637.4,0.63933421]
[1693692681917,1.552,1637.7,1637.3,48.81]
[1693692682207,1.552,1637.6,1637.5,0.35244563]
[1693692682413,5.09723944,1637.6,1637.3,48.81]
[1693692682581,3.54523944,1637.6,1637.3,43.8398]
[1693692682782,3.54523944,1637.6,1637.5,0.34631149]
[1693692682984,5.09723944,1637.6,1637.5,0.34631149]
[1693692683329,5.09723944,1637.6,1637.3,43.8398]